[Event "Titled Tuesday Blitz October 18 Late 2022"]
[White "Luxama, Jacques Muller"]
[Black "Forgacs, Attila Jr."]
[WhiteFideId "11900113"]
[BlackFideId "773654"]
[WhiteElo "1931"]
[BlackElo "2168"]
[Result "1-0"]
[Round "04"]
[TimeControl "180+1"]
[Date "2022.10.19"]
[WhiteClock "0:00:09"]
[BlackClock "0:00:35"]

1. e4 {[%clk 0:02:59]}  e5 {[%clk 0:03:00]} 2. Nf3 {[%clk 0:02:58]}  Nc6 {[%clk 0:03:00]} 3. Bc4 {[%clk 0:02:58]}  Nf6 {[%clk 0:03:00]} 4. d3 {[%clk 0:02:57]}  h6 {[%clk 0:03:00]} 5. O-O {[%clk 0:02:57]}  d6 {[%clk 0:03:01]} 6. Re1 {[%clk 0:02:56]}  g5 {[%clk 0:03:01]} 7. c3 {[%clk 0:02:56]}  Bg7 {[%clk 0:03:02]} 8. d4 {[%clk 0:02:55]}  g4 {[%clk 0:02:57]} 9. Nh4 {[%clk 0:02:55]}  Nxe4 {[%clk 0:02:48]} 10. dxe5 {[%clk 0:02:38]}  Nxe5 {[%clk 0:02:32]} 11. Rxe4 {[%clk 0:02:28]}  Qxh4 {[%clk 0:02:32]} 12. f4 {[%clk 0:02:22]}  gxf3 {[%clk 0:02:30]} 13. Rxh4 {[%clk 0:02:09]}  fxg2 {[%clk 0:02:15]} 14. Bd5 {[%clk 0:01:58]}  c6 {[%clk 0:02:13]} 15. Bxg2 {[%clk 0:01:57]}  Bf5 {[%clk 0:02:12]} 16. Qxd6 {[%clk 0:01:56]}  Rd8 {[%clk 0:02:10]} 17. Qb4 {[%clk 0:01:34]}  Rd1+ {[%clk 0:02:10]} 18. Bf1 {[%clk 0:01:33]}  Rg8 {[%clk 0:01:58]} 19. Kf2 {[%clk 0:01:28]}  Bf6 {[%clk 0:01:51]} 20. Rf4 {[%clk 0:01:12]}  Rxf1+ {[%clk 0:01:38]} 21. Kxf1 {[%clk 0:01:09]}  Bh3+ {[%clk 0:01:39]} 22. Ke2 {[%clk 0:01:02]}  Rg2+ {[%clk 0:01:34]} 23. Rf2 {[%clk 0:01:02]}  Bg4+ {[%clk 0:01:25]} 24. Kf1 {[%clk 0:01:02]}  Rxf2+ {[%clk 0:01:21]} 25. Kxf2 {[%clk 0:01:02]}  Nd3+ {[%clk 0:01:17]} 26. Kg3 {[%clk 0:00:58]}  h5 {[%clk 0:01:07]} 27. Qxb7 {[%clk 0:00:46]}  Be5+ {[%clk 0:01:04]} 28. Kg2 {[%clk 0:00:45]}  Ne1+ {[%clk 0:00:53]} 29. Kf1 {[%clk 0:00:42]}  Nc2 {[%clk 0:00:53]} 30. Qxc6+ {[%clk 0:00:38]}  Ke7 {[%clk 0:00:53]} 31. Bg5+ {[%clk 0:00:31]}  f6 {[%clk 0:00:52]} 32. Qc5+ {[%clk 0:00:30]}  Ke6 {[%clk 0:00:52]} 33. Bh4 {[%clk 0:00:23]}  Bh3+ {[%clk 0:00:45]} 34. Kf2 {[%clk 0:00:20]}  Nxa1 {[%clk 0:00:43]} 35. Nd2 {[%clk 0:00:21]}  Nc2 {[%clk 0:00:41]} 36. Bg3 {[%clk 0:00:21]}  Ne1 {[%clk 0:00:31]} 37. Kxe1 {[%clk 0:00:19]}  Bxg3+ {[%clk 0:00:30]} 38. hxg3 {[%clk 0:00:19]}  Bf5 {[%clk 0:00:30]} 39. Nf3 {[%clk 0:00:18]}  Bg4 {[%clk 0:00:30]} 40. Nd4+ {[%clk 0:00:18]}  Kf7 {[%clk 0:00:31]} 41. Qc7+ {[%clk 0:00:17]}  Kg6 {[%clk 0:00:31]} 42. Qf4 {[%clk 0:00:16]}  a5 {[%clk 0:00:32]} 43. b4 {[%clk 0:00:14]}  Kf7 {[%clk 0:00:33]} 44. b5 {[%clk 0:00:09]}  Kg6 {[%clk 0:00:34]} 45. b6 {[%clk 0:00:08]}  Bc8 {[%clk 0:00:35]} 46. Qe4+ {[%clk 0:00:08]}  Kf7 {[%clk 0:00:35]} 47. Qd5+ {[%clk 0:00:08]}  Kg6 {[%clk 0:00:34]} 48. Qc6 {[%clk 0:00:09]}  Bg4 {[%clk 0:00:33]} 49. b7 {[%clk 0:00:09]}  Kg5 {[%clk 0:00:34]} 50. b8=Q {[%clk 0:00:08]}  a4 {[%clk 0:00:35]} 51. Qg8+ {[%clk 0:00:09]}  Kh6 {[%clk 0:00:35]} 52. Qxf6# {[%clk 0:00:09]} 1-0


[Site "https://www.chess.com"]

[Event "Titled Tuesday Blitz October 18 Late 2022"]
[White "Madaminov, Mukhiddin"]
[Black "Nakamura, Hikaru"]
[WhiteFideId "14210703"]
[BlackFideId "2016192"]
[WhiteElo "2341"]
[BlackElo "2909"]
[Result "0-1"]
[Round "04"]
[TimeControl "180+1"]
[Date "2022.10.18"]
[WhiteClock "0:00:03"]
[BlackClock "0:00:18"]

1. d4 {[%clk 0:03:00]}  b5 {[%clk 0:02:58]} 2. e4 {[%clk 0:03:00]}  Bb7 {[%clk 0:02:58]} 3. Bd3 {[%clk 0:03:00]}  e6 {[%clk 0:02:56]} 4. Nf3 {[%clk 0:02:56]}  c5 {[%clk 0:02:55]} 5. c3 {[%clk 0:02:54]}  a6 {[%clk 0:02:52]} 6. O-O {[%clk 0:02:54]}  Nf6 {[%clk 0:02:52]} 7. Re1 {[%clk 0:02:54]}  d6 {[%clk 0:02:49]} 8. Nbd2 {[%clk 0:02:50]}  Nbd7 {[%clk 0:02:49]} 9. Nf1 {[%clk 0:02:51]}  e5 {[%clk 0:02:46]} 10. a4 {[%clk 0:02:39]}  c4 {[%clk 0:02:46]} 11. Bc2 {[%clk 0:02:39]}  Be7 {[%clk 0:02:38]} 12. Ng3 {[%clk 0:02:38]}  g6 {[%clk 0:02:39]} 13. h3 {[%clk 0:02:37]}  O-O {[%clk 0:02:38]} 14. Be3 {[%clk 0:02:36]}  Re8 {[%clk 0:02:38]} 15. Qd2 {[%clk 0:02:34]}  Bf8 {[%clk 0:02:39]} 16. Nh2 {[%clk 0:02:07]}  exd4 {[%clk 0:02:26]} 17. Bxd4 {[%clk 0:02:05]}  Nc5 {[%clk 0:02:26]} 18. axb5 {[%clk 0:01:58]}  axb5 {[%clk 0:02:26]} 19. Rxa8 {[%clk 0:01:57]}  Bxa8 {[%clk 0:02:27]} 20. Ng4 {[%clk 0:01:45]}  Nxg4 {[%clk 0:02:02]} 21. hxg4 {[%clk 0:01:46]}  Qh4 {[%clk 0:02:02]} 22. Qf4 {[%clk 0:00:46]}  Ne6 {[%clk 0:01:37]} 23. Qf6 {[%clk 0:00:46]}  Qxf6 {[%clk 0:01:38]} 24. Bxf6 {[%clk 0:00:47]}  Bh6 {[%clk 0:01:36]} 25. Ra1 {[%clk 0:00:44]}  Bc6 {[%clk 0:01:35]} 26. Ne2 {[%clk 0:00:42]}  d5 {[%clk 0:01:29]} 27. Ra6 {[%clk 0:00:36]}  Ba8 {[%clk 0:01:28]} 28. e5 {[%clk 0:00:25]}  Bf8 {[%clk 0:01:08]} 29. Kf1 {[%clk 0:00:22]}  Bc5 {[%clk 0:01:05]} 30. f4 {[%clk 0:00:18]}  d4 {[%clk 0:01:00]} 31. cxd4 {[%clk 0:00:17]}  Nxd4 {[%clk 0:01:01]} 32. Nxd4 {[%clk 0:00:16]}  Bxd4 {[%clk 0:01:01]} 33. b3 {[%clk 0:00:17]}  Bb7 {[%clk 0:00:41]} 34. Rd6 {[%clk 0:00:11]}  Bc5 {[%clk 0:00:35]} 35. Rd7 {[%clk 0:00:11]}  Bc8 {[%clk 0:00:35]} 36. Rc7 {[%clk 0:00:10]}  Bb4 {[%clk 0:00:16]} 37. bxc4 {[%clk 0:00:10]}  bxc4 {[%clk 0:00:17]} 38. Ba4 {[%clk 0:00:10]}  Rf8 {[%clk 0:00:18]} 39. Rxc4 {[%clk 0:00:09]}  Ba6 {[%clk 0:00:18]} 40. Bb3 {[%clk 0:00:03]}  Rc8 {[%clk 0:00:18]} 0-1


[Site "https://www.chess.com"]

[Event "Titled Tuesday Blitz October 18 Late 2022"]
[White "Mahdavi, Reza"]
[Black "Jobava, Baadur"]
[WhiteFideId "12595926"]
[BlackFideId "13601520"]
[WhiteElo "2240"]
[BlackElo "2582"]
[Result "1-0"]
[Round "04"]
[TimeControl "180+1"]
[Date "2022.10.18"]
[WhiteClock "0:00:17"]
[BlackClock "0:00:15"]

1. e4 {[%clk 0:03:00]}  e6 {[%clk 0:03:00]} 2. d4 {[%clk 0:03:01]}  d5 {[%clk 0:03:01]} 3. Nc3 {[%clk 0:03:01]}  dxe4 {[%clk 0:03:01]} 4. Nxe4 {[%clk 0:03:02]}  Bd7 {[%clk 0:03:02]} 5. Nf3 {[%clk 0:03:03]}  Bc6 {[%clk 0:03:03]} 6. Bd3 {[%clk 0:03:04]}  Nd7 {[%clk 0:03:03]} 7. Bf4 {[%clk 0:03:04]}  Ngf6 {[%clk 0:03:03]} 8. Nxf6+ {[%clk 0:03:05]}  Nxf6 {[%clk 0:02:56]} 9. Qe2 {[%clk 0:02:57]}  Bd6 {[%clk 0:02:51]} 10. Ne5 {[%clk 0:02:54]}  O-O {[%clk 0:02:48]} 11. O-O-O {[%clk 0:02:49]}  a5 {[%clk 0:02:42]} 12. Rhe1 {[%clk 0:02:48]}  a4 {[%clk 0:02:42]} 13. a3 {[%clk 0:02:47]}  Qe7 {[%clk 0:02:40]} 14. c3 {[%clk 0:02:45]}  Rfd8 {[%clk 0:02:38]} 15. Bg5 {[%clk 0:02:43]}  Ra5 {[%clk 0:02:18]} 16. Bh4 {[%clk 0:02:33]}  h6 {[%clk 0:01:50]} 17. f4 {[%clk 0:02:22]}  Re8 {[%clk 0:01:32]} 18. g4 {[%clk 0:02:00]}  Qf8 {[%clk 0:01:32]} 19. g5 {[%clk 0:01:08]}  Nd5 {[%clk 0:01:32]} 20. Bg3 {[%clk 0:00:54]}  hxg5 {[%clk 0:01:25]} 21. fxg5 {[%clk 0:00:55]}  f5 {[%clk 0:01:05]} 22. gxf6 {[%clk 0:00:54]}  Qxf6 {[%clk 0:01:05]} 23. Kc2 {[%clk 0:00:39]}  Qh6 {[%clk 0:01:04]} 24. Nc4 {[%clk 0:00:31]}  Raa8 {[%clk 0:00:55]} 25. Nxd6 {[%clk 0:00:31]}  cxd6 {[%clk 0:00:56]} 26. Bxd6 {[%clk 0:00:32]}  Rac8 {[%clk 0:00:44]} 27. Rg1 {[%clk 0:00:29]}  Ne3+ {[%clk 0:00:43]} 28. Kb1 {[%clk 0:00:29]}  Nxd1 {[%clk 0:00:43]} 29. Qxd1 {[%clk 0:00:30]}  e5 {[%clk 0:00:18]} 30. Bxe5 {[%clk 0:00:30]}  Rxe5 {[%clk 0:00:18]} 31. dxe5 {[%clk 0:00:31]}  Qe3 {[%clk 0:00:17]} 32. Bc4+ {[%clk 0:00:28]}  Kf8 {[%clk 0:00:16]} 33. Rf1+ {[%clk 0:00:16]}  Ke7 {[%clk 0:00:15]} 34. Qd6+ {[%clk 0:00:16]}  Ke8 {[%clk 0:00:15]} 35. Bf7# {[%clk 0:00:17]} 1-0


[Site "https://www.chess.com"]

[Event "Titled Tuesday Blitz October 18 Late 2022"]
[White "Melikhov, Evgeny V."]
[Black "Roque Sola, Gisela"]
[WhiteFideId "4122046"]
[BlackFideId "5120241"]
[WhiteElo "2169"]
[BlackElo "1961"]
[Result "0-1"]
[Round "04"]
[TimeControl "180+1"]
[Date "2022.10.19"]
[WhiteClock "0:00:04"]
[BlackClock "0:00:09"]

1. d4 {[%clk 0:03:00]}  Nf6 {[%clk 0:02:58]} 2. Bg5 {[%clk 0:03:00]}  e6 {[%clk 0:02:56]} 3. e4 {[%clk 0:02:59]}  Be7 {[%clk 0:02:54]} 4. Bxf6 {[%clk 0:02:43]}  Bxf6 {[%clk 0:02:37]} 5. Nf3 {[%clk 0:02:42]}  d5 {[%clk 0:02:35]} 6. e5 {[%clk 0:02:41]}  Be7 {[%clk 0:02:35]} 7. Bd3 {[%clk 0:02:37]}  c5 {[%clk 0:02:35]} 8. c3 {[%clk 0:02:36]}  Nc6 {[%clk 0:02:34]} 9. O-O {[%clk 0:02:34]}  cxd4 {[%clk 0:02:31]} 10. cxd4 {[%clk 0:02:33]}  Qb6 {[%clk 0:02:30]} 11. Nc3 {[%clk 0:02:29]}  Bd7 {[%clk 0:02:28]} 12. Nb5 {[%clk 0:01:40]}  a6 {[%clk 0:02:27]} 13. Nd6+ {[%clk 0:01:38]}  Bxd6 {[%clk 0:02:27]} 14. exd6 {[%clk 0:01:38]}  Nxd4 {[%clk 0:02:25]} 15. Nxd4 {[%clk 0:01:30]}  Qxd4 {[%clk 0:02:26]} 16. Qb3 {[%clk 0:01:27]}  b5 {[%clk 0:02:16]} 17. Rad1 {[%clk 0:01:24]}  Qb6 {[%clk 0:02:15]} 18. Rfe1 {[%clk 0:01:21]}  O-O {[%clk 0:02:06]} 19. Qb4 {[%clk 0:01:18]}  a5 {[%clk 0:01:58]} 20. Qh4 {[%clk 0:01:16]}  h6 {[%clk 0:01:58]} 21. Re3 {[%clk 0:01:12]}  Qxd6 {[%clk 0:01:52]} 22. Rg3 {[%clk 0:01:12]}  e5 {[%clk 0:01:51]} 23. Be4 {[%clk 0:00:46]}  Rac8 {[%clk 0:01:36]} 24. b3 {[%clk 0:00:40]}  dxe4 {[%clk 0:01:30]} 25. Re1 {[%clk 0:00:39]}  Bf5 {[%clk 0:01:28]} 26. h3 {[%clk 0:00:38]}  Bg6 {[%clk 0:01:25]} 27. Qg4 {[%clk 0:00:35]}  Rc2 {[%clk 0:01:20]} 28. h4 {[%clk 0:00:35]}  Qd2 {[%clk 0:01:18]} 29. Rf1 {[%clk 0:00:34]}  Qe2 {[%clk 0:01:16]} 30. Qd7 {[%clk 0:00:32]}  Rxa2 {[%clk 0:01:08]} 31. Re3 {[%clk 0:00:31]}  Qd2 {[%clk 0:01:06]} 32. Qe7 {[%clk 0:00:30]}  a4 {[%clk 0:00:58]} 33. bxa4 {[%clk 0:00:30]}  bxa4 {[%clk 0:00:58]} 34. Qxe5 {[%clk 0:00:28]}  Rb2 {[%clk 0:00:50]} 35. h5 {[%clk 0:00:27]}  Bh7 {[%clk 0:00:49]} 36. Rg3 {[%clk 0:00:27]}  f6 {[%clk 0:00:48]} 37. Qe6+ {[%clk 0:00:26]}  Kh8 {[%clk 0:00:47]} 38. Qe7 {[%clk 0:00:26]}  Rg8 {[%clk 0:00:44]} 39. Ra1 {[%clk 0:00:21]}  Qd4 {[%clk 0:00:40]} 40. Rc1 {[%clk 0:00:16]}  Qxf2+ {[%clk 0:00:39]} 41. Kh2 {[%clk 0:00:16]}  Qf4 {[%clk 0:00:38]} 42. Rc8 {[%clk 0:00:14]}  Qh4+ {[%clk 0:00:32]} 43. Rh3 {[%clk 0:00:14]}  Qxh3+ {[%clk 0:00:21]} 44. Kxh3 {[%clk 0:00:14]}  Rxc8 {[%clk 0:00:21]} 45. Kg3 {[%clk 0:00:13]}  Rb3+ {[%clk 0:00:19]} 46. Kf4 {[%clk 0:00:13]}  a3 {[%clk 0:00:19]} 47. Qe6 {[%clk 0:00:12]}  Rcb8 {[%clk 0:00:19]} 48. Qa6 {[%clk 0:00:11]}  e3 {[%clk 0:00:18]} 49. Kf3 {[%clk 0:00:10]}  e2+ {[%clk 0:00:15]} 50. Kf2 {[%clk 0:00:09]}  Bd3 {[%clk 0:00:13]} 51. Qa7 {[%clk 0:00:09]}  Rb2 {[%clk 0:00:12]} 52. Ke1 {[%clk 0:00:08]}  Rb1+ {[%clk 0:00:12]} 53. Kf2 {[%clk 0:00:08]}  e1=Q+ {[%clk 0:00:12]} 54. Kf3 {[%clk 0:00:09]}  Qe2+ {[%clk 0:00:12]} 55. Kg3 {[%clk 0:00:09]}  Bf5 {[%clk 0:00:11]} 56. Qc7 {[%clk 0:00:07]}  Qg4+ {[%clk 0:00:10]} 57. Kh2 {[%clk 0:00:08]}  Qxh5+ {[%clk 0:00:11]} 58. Kg3 {[%clk 0:00:08]}  Qg4+ {[%clk 0:00:11]} 59. Kh2 {[%clk 0:00:08]}  R1b2 {[%clk 0:00:11]} 60. Qc6 {[%clk 0:00:05]}  Rxg2+ {[%clk 0:00:10]} 61. Qxg2 {[%clk 0:00:06]}  Rb2 {[%clk 0:00:10]} 62. Kh1 {[%clk 0:00:04]}  Qxg2# {[%clk 0:00:09]} 0-1


[Site "https://www.chess.com"]

[Event "Titled Tuesday Blitz October 18 Late 2022"]
[White "Mortazavi, Ali"]
[Black "Iliaguev, Nisim"]
[WhiteFideId "401323"]
[BlackFideId "2817276"]
[WhiteElo "2548"]
[BlackElo "2729"]
[Result "0-1"]
[Round "04"]
[TimeControl "180+1"]
[Date "2022.10.19"]
[WhiteClock "0:00:02"]
[BlackClock "0:00:26"]

1. e4 {[%clk 0:02:59]}  c6 {[%clk 0:02:59]} 2. Nc3 {[%clk 0:02:59]}  d5 {[%clk 0:03:00]} 3. Qf3 {[%clk 0:03:00]}  e6 {[%clk 0:02:52]} 4. d3 {[%clk 0:02:59]}  Nf6 {[%clk 0:02:51]} 5. g3 {[%clk 0:02:59]}  Nbd7 {[%clk 0:02:51]} 6. Bg2 {[%clk 0:03:00]}  Bb4 {[%clk 0:02:50]} 7. Bd2 {[%clk 0:03:00]}  d4 {[%clk 0:02:36]} 8. Nb1 {[%clk 0:02:58]}  a5 {[%clk 0:02:33]} 9. a3 {[%clk 0:02:52]}  Bxd2+ {[%clk 0:02:32]} 10. Nxd2 {[%clk 0:02:52]}  h5 {[%clk 0:02:29]} 11. Nc4 {[%clk 0:02:36]}  Qc7 {[%clk 0:02:24]} 12. h4 {[%clk 0:02:13]}  b5 {[%clk 0:02:18]} 13. Nd2 {[%clk 0:02:13]}  O-O {[%clk 0:02:11]} 14. Nh3 {[%clk 0:02:12]}  Ng4 {[%clk 0:02:01]} 15. Qe2 {[%clk 0:02:05]}  a4 {[%clk 0:01:54]} 16. Nf4 {[%clk 0:01:51]}  g6 {[%clk 0:01:39]} 17. Bh3 {[%clk 0:01:35]}  Ndf6 {[%clk 0:01:33]} 18. Ng2 {[%clk 0:01:21]}  e5 {[%clk 0:01:28]} 19. f3 {[%clk 0:01:18]}  c5 {[%clk 0:01:12]} 20. Bxg4 {[%clk 0:00:48]}  hxg4 {[%clk 0:01:13]} 21. f4 {[%clk 0:00:48]}  Nh5 {[%clk 0:01:07]} 22. Qf2 {[%clk 0:00:33]}  f5 {[%clk 0:01:07]} 23. exf5 {[%clk 0:00:29]}  exf4 {[%clk 0:00:55]} 24. Nxf4 {[%clk 0:00:22]}  Nxf4 {[%clk 0:00:52]} 25. gxf4 {[%clk 0:00:15]}  Re8+ {[%clk 0:00:47]} 26. Kd1 {[%clk 0:00:09]}  gxf5 {[%clk 0:00:47]} 27. h5 {[%clk 0:00:08]}  Bb7 {[%clk 0:00:42]} 28. Rg1 {[%clk 0:00:07]}  Re3 {[%clk 0:00:39]} 29. Nf1 {[%clk 0:00:05]}  Rf3 {[%clk 0:00:35]} 30. Qh4 {[%clk 0:00:03]}  Qxf4 {[%clk 0:00:29]} 31. Nd2 {[%clk 0:00:02]}  Rf2 {[%clk 0:00:26]} 0-1


[Site "https://www.chess.com"]

[Event "Titled Tuesday Blitz October 18 Late 2022"]
[White "Naroditsky, Daniel"]
[Black "Hambleton, Aman"]
[WhiteFideId "2026961"]
[BlackFideId "2606577"]
[WhiteElo "2628"]
[BlackElo "2538"]
[Result "0-1"]
[Round "04"]
[TimeControl "180+1"]
[Date "2022.10.18"]
[WhiteClock "0:00:04"]
[BlackClock "0:00:03"]

1. e4 {[%clk 0:03:00]}  c5 {[%clk 0:02:53]} 2. Nf3 {[%clk 0:03:00]}  e6 {[%clk 0:02:53]} 3. c3 {[%clk 0:03:00]}  Nf6 {[%clk 0:02:53]} 4. e5 {[%clk 0:03:00]}  Nd5 {[%clk 0:02:54]} 5. d4 {[%clk 0:03:01]}  cxd4 {[%clk 0:02:54]} 6. cxd4 {[%clk 0:03:02]}  d6 {[%clk 0:02:55]} 7. Bc4 {[%clk 0:02:59]}  Nc6 {[%clk 0:02:52]} 8. O-O {[%clk 0:02:58]}  Be7 {[%clk 0:02:46]} 9. Qe2 {[%clk 0:02:58]}  b6 {[%clk 0:02:32]} 10. Nc3 {[%clk 0:02:12]}  Nxc3 {[%clk 0:02:05]} 11. bxc3 {[%clk 0:02:12]}  dxe5 {[%clk 0:01:55]} 12. dxe5 {[%clk 0:02:13]}  Bb7 {[%clk 0:01:38]} 13. Bd3 {[%clk 0:02:02]}  Qc7 {[%clk 0:01:24]} 14. Bf4 {[%clk 0:01:59]}  h6 {[%clk 0:01:19]} 15. Bg3 {[%clk 0:01:53]}  Bc5 {[%clk 0:01:16]} 16. Rad1 {[%clk 0:01:44]}  Ne7 {[%clk 0:01:14]} 17. Nd4 {[%clk 0:01:08]}  Bxd4 {[%clk 0:01:12]} 18. cxd4 {[%clk 0:01:05]}  O-O {[%clk 0:00:59]} 19. f3 {[%clk 0:01:05]}  Bd5 {[%clk 0:00:36]} 20. Bf2 {[%clk 0:00:54]}  Rac8 {[%clk 0:00:35]} 21. Rd2 {[%clk 0:00:53]}  Bc4 {[%clk 0:00:25]} 22. h4 {[%clk 0:00:39]}  Bxd3 {[%clk 0:00:21]} 23. Qxd3 {[%clk 0:00:40]}  Qc3 {[%clk 0:00:20]} 24. Qe2 {[%clk 0:00:34]}  Nd5 {[%clk 0:00:20]} 25. g3 {[%clk 0:00:34]}  Rc4 {[%clk 0:00:15]} 26. Rfd1 {[%clk 0:00:27]}  Rfc8 {[%clk 0:00:15]} 27. Kg2 {[%clk 0:00:22]}  Qa3 {[%clk 0:00:15]} 28. Re1 {[%clk 0:00:21]}  Qa4 {[%clk 0:00:10]} 29. Ra1 {[%clk 0:00:15]}  Rc2 {[%clk 0:00:10]} 30. Qd1 {[%clk 0:00:09]}  Qc4 {[%clk 0:00:08]} 31. Rxc2 {[%clk 0:00:10]}  Qxc2 {[%clk 0:00:09]} 32. Qxc2 {[%clk 0:00:10]}  Rxc2 {[%clk 0:00:10]} 33. a4 {[%clk 0:00:10]}  a6 {[%clk 0:00:06]} 34. f4 {[%clk 0:00:04]}  h5 {[%clk 0:00:05]} 35. Kf3 {[%clk 0:00:04]}  g6 {[%clk 0:00:05]} 36. Rb1 {[%clk 0:00:03]}  Kf8 {[%clk 0:00:05]} 37. Be1 {[%clk 0:00:03]}  Ke8 {[%clk 0:00:05]} 38. Bb4 {[%clk 0:00:02]}  Rc4 {[%clk 0:00:06]} 39. Bd6 {[%clk 0:00:01]}  Kd7 {[%clk 0:00:04]} 40. Ra1 {[%clk 0:00:01]}  Kc6 {[%clk 0:00:04]} 41. Ke2 {[%clk 0:00:02]}  Rxd4 {[%clk 0:00:04]} 42. Rc1+ {[%clk 0:00:02]}  Kb7 {[%clk 0:00:03]} 43. Ra1 {[%clk 0:00:03]}  Rc4 {[%clk 0:00:03]} 44. Kd3 {[%clk 0:00:03]}  Rc6 {[%clk 0:00:04]} 45. Kd4 {[%clk 0:00:04]}  Rc2 {[%clk 0:00:04]} 46. Ra3 {[%clk 0:00:03]}  Rd2+ {[%clk 0:00:04]} 47. Ke4 {[%clk 0:00:03]}  Re2+ {[%clk 0:00:04]} 48. Kf3 {[%clk 0:00:03]}  Rc2 {[%clk 0:00:04]} 49. Ke4 {[%clk 0:00:04]}  Rc4+ {[%clk 0:00:04]} 50. Kd3 {[%clk 0:00:04]}  Rc1 {[%clk 0:00:04]} 51. Kd2 {[%clk 0:00:05]}  Rf1 {[%clk 0:00:04]} 52. Ke2 {[%clk 0:00:05]}  Rg1 {[%clk 0:00:04]} 53. Kf2 {[%clk 0:00:04]}  Rc1 {[%clk 0:00:04]} 54. Rb3 {[%clk 0:00:04]}  Rc3 {[%clk 0:00:04]} 55. Rb2 {[%clk 0:00:04]}  Kc6 {[%clk 0:00:04]} 56. Ra2 {[%clk 0:00:03]}  Rc4 {[%clk 0:00:04]} 57. Ra3 {[%clk 0:00:03]}  Nc3 {[%clk 0:00:04]} 58. a5 {[%clk 0:00:03]}  b5 {[%clk 0:00:04]} 59. Rb3 {[%clk 0:00:03]}  Nd5 {[%clk 0:00:04]} 60. Ra3 {[%clk 0:00:04]}  b4 {[%clk 0:00:05]} 61. Ra1 {[%clk 0:00:04]}  Kb5 {[%clk 0:00:05]} 62. Ke2 {[%clk 0:00:04]}  Rc3 {[%clk 0:00:03]} 63. Kd2 {[%clk 0:00:05]}  Rxg3 {[%clk 0:00:03]} 64. Rc1 {[%clk 0:00:05]}  Rc3 {[%clk 0:00:03]} 65. Rb1 {[%clk 0:00:06]}  Rc4 {[%clk 0:00:04]} 66. Kd3 {[%clk 0:00:05]}  Rc3+ {[%clk 0:00:04]} 67. Kd4 {[%clk 0:00:06]}  Rc4+ {[%clk 0:00:03]} 68. Kd3 {[%clk 0:00:06]}  Rxf4 {[%clk 0:00:04]} 69. Rc1 {[%clk 0:00:07]}  Rf3+ {[%clk 0:00:04]} 70. Kd4 {[%clk 0:00:07]}  Rc3 {[%clk 0:00:04]} 71. Rf1 {[%clk 0:00:07]}  Rc4+ {[%clk 0:00:04]} 72. Kd3 {[%clk 0:00:08]}  Nf4+ {[%clk 0:00:04]} 73. Ke3 {[%clk 0:00:08]}  b3 {[%clk 0:00:04]} 74. Rb1 {[%clk 0:00:06]}  Nd5+ {[%clk 0:00:03]} 75. Kd3 {[%clk 0:00:07]}  Rc3+ {[%clk 0:00:03]} 76. Kd4 {[%clk 0:00:08]}  Rf3 {[%clk 0:00:03]} 77. Rc1 {[%clk 0:00:08]}  b2 {[%clk 0:00:03]} 78. Rb1 {[%clk 0:00:07]}  Rb3 {[%clk 0:00:03]} 79. Bf8 {[%clk 0:00:04]}  Nc3 {[%clk 0:00:02]} 80. Rf1 {[%clk 0:00:04]}  b1=Q {[%clk 0:00:02]} 81. Rxf7 {[%clk 0:00:04]}  Qe4# {[%clk 0:00:03]} 0-1


[Site "https://www.chess.com"]

[Event "Titled Tuesday Blitz October 18 Late 2022"]
[White "Ozen, Batuhan"]
[Black "Souza Santos, Carlos Roberto"]
[WhiteFideId "6345123"]
[BlackFideId "2150603"]
[WhiteElo "2406"]
[BlackElo "2064"]
[Result "1-0"]
[Round "04"]
[TimeControl "180+1"]
[Date "2022.10.19"]
[WhiteClock "0:01:52"]
[BlackClock "0:00:04"]

1. d4 {[%clk 0:03:00]}  Nf6 {[%clk 0:01:17]} 2. Nc3 {[%clk 0:02:58]}  d6 {[%clk 0:01:17]} 3. e4 {[%clk 0:02:56]}  g6 {[%clk 0:01:16]} 4. g3 {[%clk 0:02:56]}  Bg7 {[%clk 0:01:15]} 5. Bg2 {[%clk 0:02:57]}  O-O {[%clk 0:01:15]} 6. Nge2 {[%clk 0:02:57]}  Nbd7 {[%clk 0:01:15]} 7. O-O {[%clk 0:02:56]}  e5 {[%clk 0:01:16]} 8. a4 {[%clk 0:02:51]}  Qe7 {[%clk 0:01:16]} 9. Re1 {[%clk 0:02:46]}  c6 {[%clk 0:01:15]} 10. b3 {[%clk 0:02:46]}  Ne8 {[%clk 0:01:07]} 11. d5 {[%clk 0:02:39]}  f5 {[%clk 0:01:05]} 12. dxc6 {[%clk 0:02:33]}  bxc6 {[%clk 0:01:01]} 13. Ba3 {[%clk 0:02:33]}  Qf6 {[%clk 0:00:39]} 14. exf5 {[%clk 0:02:26]}  Qxf5 {[%clk 0:00:36]} 15. Bxc6 {[%clk 0:02:25]}  Qxf2+ {[%clk 0:00:34]} 16. Kh1 {[%clk 0:02:25]}  Nb6 {[%clk 0:00:19]} 17. Rf1 {[%clk 0:02:18]}  Qe3 {[%clk 0:00:16]} 18. Rxf8+ {[%clk 0:02:12]}  Bxf8 {[%clk 0:00:17]} 19. Qg1 {[%clk 0:02:04]}  Qxg1+ {[%clk 0:00:13]} 20. Rxg1 {[%clk 0:02:05]}  Nc7 {[%clk 0:00:06]} 21. Bxa8 {[%clk 0:02:02]}  Ncxa8 {[%clk 0:00:07]} 22. Rd1 {[%clk 0:02:00]}  Bb7+ {[%clk 0:00:08]} 23. Kg1 {[%clk 0:02:00]}  Bh6 {[%clk 0:00:06]} 24. a5 {[%clk 0:01:55]}  Be3+ {[%clk 0:00:05]} 25. Kf1 {[%clk 0:01:55]}  Nd7 {[%clk 0:00:04]} 26. Nd5 {[%clk 0:01:52]} 1-0


[Site "https://www.chess.com"]